fUST/lending_fUST_20250227
["ID","MTS","AMOUNT","RATE_DAILY","PERIOD"]
[354720354,1740645033667,-500.0,0.00046575,120]
[354720355,1740645033677,-500.0,0.00046575,120]
[354720356,1740645033686,-500.0,0.00046575,120]
[354720357,1740645033695,-1080.0,0.00046575,120]
[354720358,1740645033705,-500.0,0.00046575,120]
[354720359,1740645033714,-701.25,0.00046575,120]
[354720360,1740645033724,-500.0,0.00046575,120]
[354720361,1740645033733,-500.0,0.00046575,120]
[354720362,1740645033742,-500.0,0.00046575,120]
[354720363,1740645033764,-500.0,0.00046575,120]
[354720364,1740645033775,-500.0,0.00046575,120]
[354720365,1740645033784,-500.0,0.00046575,120]
[354720366,1740645033794,-500.0,0.00046575,120]
[354720367,1740645033805,-500.0,0.00046575,120]
[354720368,1740645033815,-500.0,0.00046575,120]
[354720369,1740645033825,-500.0,0.00046575,120]
[354720370,1740645033836,-500.0,0.00046575,120]
[354720371,1740645033846,-500.0,0.00046575,120]
[354720372,1740645033856,-500.0,0.00046575,120]
[354720373,1740645033866,-500.0,0.00046575,120]
[354720374,1740645033875,-500.0,0.00046575,120]
[354720375,1740645033885,-500.0,0.00046575,120]
[354720376,1740645033895,-500.0,0.00046575,120]
[354720377,1740645033904,-706.92,0.00046575,120]
[354720378,1740645033914,-500.0,0.00046575,120]
[354720379,1740645033924,-500.0,0.00046575,120]
[354720380,1740645033933,-500.0,0.00046575,120]
[354720381,1740645033943,-500.0,0.00046575,120]
[354720382,1740645033953,-500.0,0.00046575,45]
[354720383,1740645033962,-500.0,0.00046575,120]
[354720384,1740645033972,-500.0,0.00046575,120]
[354720385,1740645033982,-500.0,0.00046575,120]
[354720386,1740645033992,-575.08251649,0.00046575,120]
[354720387,1740645034002,-500.0,0.00046575,120]
[354720388,1740645034012,-500.0,0.00046575,120]
[354720389,1740645034021,-500.0,0.00046575,120]
[354720390,1740645034031,-500.0,0.00046575,120]
[354720391,1740645034040,-500.0,0.00046575,120]
[354720392,1740645034049,-500.0,0.00046575,120]
[354720393,1740645034059,-502.02016129,0.00046575,120]
[354720394,1740645034069,-500.0,0.00046575,120]
[354720395,1740645034078,-500.0,0.00046575,120]
[354720396,1740645034088,-573.21,0.00046575,120]
[354720397,1740645034098,-500.0,0.00046575,120]
[354720398,1740645034107,-1475.23,0.00046575,120]
[354720399,1740645034116,-529.00279268,0.00046575,120]
[354720400,1740645034126,-500.0,0.00046575,120]
[354720401,1740645034135,-500.0,0.00046575,120]
[354720402,1740645034145,-500.0,0.00046575,120]
[354720403,1740645034155,-500.0,0.00046575,120]
[354720404,1740645034165,-500.0,0.00046575,120]
[354720405,1740645034175,-500.0,0.00046575,120]
[354720406,1740645034185,-500.0,0.00046575,120]
[354720407,1740645034195,-500.0,0.00046575,120]
[354720408,1740645034205,-508.71446144,0.00046575,120]
[354720409,1740645034214,-500.0,0.00046575,120]
[354720410,1740645034224,-500.0,0.00046575,120]
[354720411,1740645034234,-500.0,0.00046575,120]
[354720412,1740645034244,-500.0,0.00046575,120]
[354720413,1740645034253,-500.0,0.00046575,120]
[354720414,1740645034263,-300.0,0.00046575,120]
[354720415,1740645034272,-575.15173286,0.00046575,120]
[354720416,1740645034282,-500.0,0.00046575,120]
[354720417,1740645034292,-500.0,0.00046575,120]
[354720418,1740645034302,-500.0,0.00046575,120]
[354720419,1740645034312,-2492.79,0.00046575,120]
[354720420,1740645034321,-500.0,0.00046575,120]
[354720421,1740645034331,-500.0,0.00046575,120]
[354720422,1740645034340,-3605.51,0.00046575,120]
[354720423,1740645034351,-500.0,0.00046575,120]
[354720424,1740645034362,-1000.0,0.00046575,120]
[354720425,1740645034372,-706.59,0.00046575,120]
[354720426,1740645034382,-5880.65,0.00046575,120]
[354720427,1740645034392,-687.22,0.00046575,120]
[354720428,1740645034401,-500.0,0.00046575,120]
[354720429,1740645034411,-829.07,0.00046575,120]
[354720430,1740645034420,-500.0,0.00046575,120]
[354720431,1740645034432,-550.99030266,0.00046575,120]
[354720432,1740645034442,-500.0,0.00046575,120]
[354720433,1740645034451,-500.0,0.00046575,120]
[354720434,1740645034461,-500.0,0.00046575,120]
[354720435,1740645034471,-500.0,0.00046575,120]
[354720436,1740645034480,-2715.66,0.00046575,120]
[354720437,1740645034489,-1233.62,0.00046575,120]
[354720438,1740645034499,-500.0,0.00046575,120]
[354720439,1740645034509,-500.0,0.00046575,120]
[354720440,1740645034518,-890.87,0.00046575,120]
[354720441,1740645034528,-44425.16,0.00046575,7]
[354720442,1740645034538,-500.0,0.00046575,120]
[354720443,1740645034548,-500.0,0.00046575,120]
[354720444,1740645034558,-500.0,0.00046575,14]
[354720445,1740645034568,-525.49,0.00046575,120]
[354720446,1740645034578,-500.0,0.00046575,120]
[354720447,1740645034587,-500.0,0.00046575,120]
[354720448,1740645034597,-502.68018266,0.00046575,120]
[354720449,1740645034607,-500.0,0.00046575,120]
[354720450,1740645034616,-282.72250265,0.00046575,120]
[354720451,1740645034625,-1160.72,0.00046575,120]
[354720452,1740645034634,-500.0,0.00046575,120]
[354720453,1740645034644,-1542.34,0.00046575,120]
[354720454,1740645034654,-500.0,0.00046575,120]
[354720455,1740645034663,-10995.86,0.00046575,120]
[354720456,1740645034674,-500.0,0.00046575,120]
[354720457,1740645034684,-500.0,0.00046575,120]
[354720458,1740645034693,-500.0,0.00046575,120]
[354720459,1740645034704,-948.49,0.00046575,120]
[354720460,1740645034713,-500.0,0.00046575,120]
[354720461,1740645034723,-3757.81,0.00046575,120]
[354720462,1740645034733,-917.96,0.00046575,120]
[354720463,1740645034743,-545.00435592,0.00046575,120]
[354720464,1740645034752,-500.0,0.00046575,120]
[354720465,1740645034761,-500.0,0.00046575,120]
[354720466,1740645034771,-419.29,0.00046575,30]
[354720467,1740645034780,-564.18,0.00046575,120]
[354720468,1740645034790,-500.0,0.00046575,120]
[354720469,1740645034799,-500.0,0.00046575,120]
[354720470,1740645034809,-501.90464547,0.00046575,120]
[354720471,1740645034819,-500.0,0.00046575,120]
[354720472,1740645034833,-501.8535876,0.00046575,120]
[354720473,1740645034842,-500.0,0.00046575,120]
[354720474,1740645034852,-1429.82,0.00046575,120]
[354720475,1740645034862,-500.0,0.00046575,120]
[354720476,1740645034871,-501.08,0.00046575,120]
[354720477,1740645034881,-500.0,0.00046575,120]
[354720478,1740645034891,-500.0,0.00046575,120]
[354720479,1740645034900,-500.0,0.00046575,30]
[354720480,1740645034910,-500.0,0.00046575,120]
[354720481,1740645034920,-166.33,0.00046575,120]
[354720482,1740645034930,-500.0,0.00046575,120]
[354720483,1740645034939,-500.0,0.00046575,120]
[354720484,1740645034948,-500.0,0.00046575,120]
[354720485,1740645034958,-500.0,0.00046575,120]
[354720486,1740645034967,-500.0,0.00046575,120]
[354720487,1740645034977,-621.86,0.00046575,120]
[354720488,1740645034986,-500.0,0.00046575,120]
[354720489,1740645034995,-500.0,0.00046575,120]
[354720490,1740645035005,-500.0,0.00046575,120]
[354720491,1740645035014,-500.0,0.00046575,120]
[354720492,1740645035023,-978.18,0.00046575,120]
[354720493,1740645035034,-500.0,0.00046575,120]
[354720494,1740645035044,-500.0,0.00046575,120]
[354720495,1740645035053,-500.0,0.00046575,120]
[354720496,1740645035062,-500.0,0.00046575,120]
[354720497,1740645035072,-500.0,0.00046575,120]
[354720498,1740645035082,-500.0,0.00046575,120]
[354720499,1740645035091,-500.0,0.00046575,120]
[354720500,1740645035102,-500.0,0.00046575,120]
[354720501,1740645035113,-2204.67,0.00046575,120]
[354720502,1740645035123,-500.0,0.00046575,120]
[354720503,1740645035133,-500.0,0.00046575,120]
[354720504,1740645035143,-600.0,0.00046575,120]
[354720505,1740645035153,-527.46478342,0.00046575,120]
[354720506,1740645035163,-1661.65,0.00046575,120]
[354720507,1740645035172,-500.0,0.00046575,120]
[354720508,1740645035182,-500.0,0.00046575,120]
[354720509,1740645035191,-1062.09,0.00046575,120]
[354720510,1740645035202,-500.0,0.00046575,120]
[354720511,1740645035212,-500.0,0.00046575,120]
[354720512,1740645035222,-500.0,0.00046575,120]
[354720513,1740645035231,-500.0,0.00046575,120]
[354720514,1740645035240,-500.0,0.00046575,120]
[354720515,1740645035249,-500.0,0.00046575,120]
[354720516,1740645035259,-500.0,0.00046575,120]
[354720517,1740645035268,-2457.94,0.00046575,120]
[354720518,1740645035277,-503.20902777,0.00046575,120]
[354720519,1740645035286,-500.0,0.00046575,120]
[354720520,1740645035296,-500.0,0.00046575,120]
[354720521,1740645035305,-500.0,0.00046575,120]
[354720522,1740645035315,-668.19,0.00046575,120]
[354720523,1740645035324,-500.0,0.00046575,120]
[354720524,1740645035334,-1292.87,0.00046575,120]
[354720525,1740645035343,-500.0,0.00046575,120]
[354720526,1740645035356,-501.75937348,0.00046575,120]
[354720527,1740645035366,-1000.0,0.00046575,2]
[354720528,1740645035375,-500.0,0.00046575,120]
[354720529,1740645035385,-500.0,0.00046575,120]
[354720530,1740645035395,-778.13,0.00046575,120]
[354720531,1740645035404,-1176.62,0.00046575,120]
[354720532,1740645035413,-965.62,0.00046575,120]
[354720533,1740645035621,-500.0,0.00046575,120]
[354720534,1740645035631,-500.0,0.00046575,120]
[354720535,1740645035640,-500.0,0.00046575,120]
[354720536,1740645035649,-500.0,0.00046575,120]
[354720537,1740645035659,-1216.86,0.00046575,120]
[354720538,1740645035668,-536.82,0.00046575,120]
[354720539,1740645035678,-500.0,0.00046575,120]
[354720540,1740645035687,-500.0,0.00046575,120]
[354720541,1740645035696,-500.0,0.00046575,120]
[354720542,1740645035705,-500.0,0.00046575,120]
[354720543,1740645035714,-500.0,0.00046575,120]
[354720544,1740645035724,-500.0,0.00046575,120]
[354720545,1740645035733,-613.31,0.00046575,120]
[354720546,1740645035742,-500.0,0.00046575,120]
[354720547,1740645035752,-1414.02,0.00046575,120]
[354720548,1740645035761,-500.0,0.00046575,120]
[354720549,1740645035770,-500.0,0.00046575,120]
[354720550,1740645035780,-503.44709126,0.00046575,120]
[354720551,1740645035789,-500.0,0.00046575,120]
[354720552,1740645035798,-501.13974454,0.00046575,120]
[354720553,1740645035808,-500.0,0.00046575,120]
[354720554,1740645035818,-799.1,0.00046575,120]
[354720555,1740645035828,-503.34058286,0.00046575,120]
[354720556,1740645035837,-500.0,0.00046575,120]
[354720557,1740645035846,-500.0,0.00046575,30]
[354720558,1740645035855,-500.0,0.00046575,120]
[354720559,1740645035864,-274.63779959,0.00046575,120]
[354720560,1740645035874,-500.0,0.00046575,120]
[354720561,1740645035883,-500.0,0.00046575,120]
[354720562,1740645035894,-414.37904405,0.00046575,120]
[354720563,1740645035904,-500.0,0.00046575,120]
[354720564,1740645035913,-10598.07,0.00046575,6]
[354720565,1740645035922,-501.15697113,0.00046575,120]
[354720566,1740645035931,-821.64,0.00046575,120]
[354720567,1740645035940,-500.0,0.00046575,21]
[354720568,1740645035950,-500.0,0.00046575,120]
[354720569,1740645035959,-500.0,0.00046575,120]
[354720570,1740645035970,-3104.1,0.00046575,120]
[354720571,1740645035980,-1640.98,0.00046575,120]
[354720572,1740645035990,-500.0,0.00046575,120]
[354720573,1740645035999,-568.86601947,0.00046575,120]
[354720574,1740645036009,-500.84081966,0.00046575,30]
[354720575,1740645036020,-500.0,0.00046575,120]
[354720576,1740645036030,-500.0,0.00046575,120]
[354720577,1740645036039,-1310.59,0.00046575,120]
[354720578,1740645036048,-500.0,0.00046575,120]
[354720579,1740645036058,-500.0,0.00046575,120]
[354720580,1740645036068,-500.0,0.00046575,120]
[354720581,1740645036077,-500.0,0.00046575,120]
[354720582,1740645036087,-500.0,0.00046575,120]
[354720583,1740645036097,-503.6941548,0.00046575,120]
[354720584,1740645036108,-500.0,0.00046575,120]
[354720585,1740645036119,-641.14,0.00046575,120]
[354720586,1740645036129,-17858.17,0.00046575,120]
[354720587,1740645036139,-708.95,0.00046575,120]
[354720588,1740645036150,-592.54053672,0.00046575,120]
[354720589,1740645036160,-823.99,0.00046575,120]
[354720590,1740645036169,-500.0,0.00046575,120]
[354720591,1740645036178,-2086.09,0.00046575,120]
[354720592,1740645036188,-500.0,0.00046575,120]
[354720593,1740645036197,-655.68,0.00046575,120]
[354720594,1740645036206,-500.0,0.00046575,120]
[354720595,1740645036216,-500.0,0.00046575,120]
[354720596,1740645036226,-500.0,0.00046575,120]
[354720597,1740645036236,-1565.67,0.00046575,120]
[354720598,1740645036245,-500.0,0.00046575,120]
[354720599,1740645036254,-500.0,0.00046575,120]
[354720600,1740645036263,-500.0,0.00046575,120]
[354720601,1740645036273,-500.0,0.00046575,120]
[354720602,1740645036282,-500.0,0.00046575,120]
[354720603,1740645036291,-500.0,0.00046575,120]
[354720604,1740645036301,-501.02554838,0.00046575,120]
[354720605,1740645036310,-500.0,0.00046575,120]
[354720606,1740645036320,-1232.62,0.00046575,120]
[354720607,1740645036330,-500.0,0.00046575,120]
[354720608,1740645036339,-500.0,0.00046575,120]
[354720609,1740645036349,-500.0,0.00046575,120]
[354720610,1740645036362,-7144.45,0.00046575,120]
[354720611,1740645036372,-240.46764758,0.00046631,2]
[354720612,1740645036381,-240.46764758,0.00046788,2]
[354720613,1740645036390,-500.0,0.00046849,120]
[354720614,1740645036401,-504.9395046,0.00046849,120]
[354720615,1740645036411,-500.0,0.00046849,120]
[354720616,1740645036420,-500.0,0.00046849,120]
[354720617,1740645036430,-255.36727582,0.00046849,120]
[354720618,1740645036439,-500.0,0.00046849,120]
[354720619,1740645036448,-500.0,0.00046849,3]
[354720620,1740645036457,-511.37,0.00046849,120]
[354720621,1740645036466,-500.0,0.00046849,120]
[354720622,1740645036475,-500.0,0.00046849,120]
[354720623,1740645036484,-500.0,0.00046849,120]
[354720624,1740645036494,-500.0,0.00046849,120]
[354720625,1740645036503,-531.61,0.00046849,120]
[354720626,1740645036512,-380.62,0.00046849,120]
[354720627,1740645036522,-500.0,0.00046849,120]
[354720628,1740645036531,-500.0,0.00046849,120]
[354720629,1740645036540,-750.83,0.00046849,120]
[354720630,1740645036550,-500.0,0.00046849,120]
[354720631,1740645036559,-537.68,0.00046849,120]
[354720632,1740645036570,-500.0,0.00046849,120]
[354720633,1740645036579,-500.0,0.00046849,120]
[354720634,1740645036589,-500.0,0.00046849,120]
[354720635,1740645036598,-639.17,0.00046849,120]
[354720636,1740645036608,-500.0,0.00046849,120]
[354720637,1740645036617,-500.0,0.00046849,120]
[354720638,1740645036626,-500.0,0.00046849,120]
[354720639,1740645036636,-567.03,0.00046849,120]
[354720640,1740645036645,-500.0,0.00046849,120]
[354720641,1740645036654,-500.0,0.00046849,120]
[354720642,1740645036663,-681.92,0.00046849,120]
[354720643,1740645036673,-500.0,0.00046849,120]
[354720644,1740645036682,-500.0,0.00046849,120]
[354720645,1740645036691,-663.83,0.00046849,120]
[354720646,1740645036700,-500.0,0.00046849,120]
[354720647,1740645036710,-500.0,0.00046849,120]
[354720648,1740645036719,-500.0,0.00046849,120]
[354720649,1740645036729,-500.0,0.00046849,120]
[354720650,1740645036738,-500.0,0.00046849,120]
[354720651,1740645036748,-500.0,0.00046849,120]
[354720652,1740645036757,-556.53,0.00046849,120]
[354720653,1740645036766,-663.48,0.00046849,120]
[354720654,1740645036776,-569.72,0.00046849,120]
[354720655,1740645036785,-1031.79,0.00046849,120]
[354720656,1740645036795,-500.0,0.00046849,120]
[354720657,1740645036804,-500.0,0.00046849,120]
[354720658,1740645036813,-500.0,0.00046849,120]
[354720659,1740645036826,-500.0,0.00046849,120]
[354720660,1740645036836,-549.69,0.00046849,120]
[354720661,1740645036845,-540.2,0.00046849,120]
[354720662,1740645036855,-500.0,0.00046849,120]
[354720663,1740645036864,-500.0,0.00046849,120]
[354720664,1740645036873,-500.0,0.00046849,120]
[354720665,1740645036883,-500.0,0.00046849,120]
[354720666,1740645036892,-500.0,0.00046849,120]
[354720667,1740645036902,-500.0,0.00046849,120]
[354720668,1740645036911,-1080.0,0.00046849,120]
[354720669,1740645036921,-500.0,0.00046849,120]
[354720670,1740645036930,-701.25,0.00046849,120]
[354720671,1740645036939,-547.15013859,0.00046849,120]
[354720672,1740645036949,-500.0,0.00046849,120]
[354720673,1740645036958,-520.62914685,0.00046849,120]
[354720674,1740645036967,-500.0,0.00046849,120]
[354720675,1740645036977,-500.0,0.00046849,120]
[354720676,1740645036986,-500.0,0.00046849,120]
[354720677,1740645036995,-500.0,0.00046849,120]
[354720678,1740645037004,-500.0,0.00046849,120]
[354720679,1740645037013,-641.61101082,0.00046849,120]
[354720680,1740645037023,-706.92,0.00046849,120]
[354720681,1740645037032,-500.0,0.00046849,120]
[354720682,1740645037041,-500.0,0.00046849,120]
[354720683,1740645037051,-500.0,0.00046849,120]
[354720684,1740645037061,-500.0,0.00046849,120]
[354720685,1740645037073,-500.0,0.00046849,120]
[354720686,1740645037083,-500.0,0.00046849,120]
[354720687,1740645037092,-500.0,0.00046849,120]
[354720688,1740645037104,-500.0,0.00046849,120]
[354720689,1740645037114,-214.18,0.00046849,120]
[354720690,1740645037124,-500.0,0.00046849,120]
[354720691,1740645037133,-500.0,0.00046849,120]
[354720692,1740645037143,-500.0,0.00046849,120]
[354720693,1740645037152,-1475.23,0.00046849,120]
[354720694,1740645037162,-500.0,0.00046849,120]
[354720695,1740645037171,-500.0,0.00046849,120]
[354720696,1740645037180,-500.0,0.00046849,120]
[354720697,1740645037189,-500.0,0.00046849,120]
[354720698,1740645037199,-500.0,0.00046849,120]
[354720699,1740645037208,-500.0,0.00046849,120]
[354720700,1740645037217,-500.0,0.00046849,120]
[354720701,1740645037226,-2492.79,0.00046849,120]
[354720702,1740645037236,-500.0,0.00046849,120]
[354720703,1740645037245,-500.0,0.00046849,120]
[354720704,1740645037254,-3605.51,0.00046849,120]
[354720705,1740645037263,-509.57675255,0.00046849,120]
[354720706,1740645037273,-706.59,0.00046849,120]
[354720707,1740645037282,-5880.65,0.00046849,120]
[354720708,1740645037291,-687.22,0.00046849,120]
[354720709,1740645037300,-500.0,0.00046849,120]
[354720710,1740645037309,-829.07,0.00046849,120]
[354720711,1740645037321,-500.0,0.00046849,120]
[354720712,1740645037330,-500.0,0.00046849,120]
[354720713,1740645037339,-2715.66,0.00046849,120]
[354720714,1740645037350,-1233.62,0.00046849,120]
[354720715,1740645037362,-500.0,0.00046849,120]
[354720716,1740645037372,-500.0,0.00046849,120]
[354720717,1740645037382,-890.87,0.00046849,120]
[354720718,1740645037392,-44425.16,0.00046849,7]
[354720719,1740645037401,-500.0,0.00046849,14]
[354720720,1740645037411,-525.49,0.00046849,120]
[354720721,1740645037420,-500.0,0.00046849,120]
[354720722,1740645037431,-500.0,0.00046849,120]
[354720723,1740645037441,-1160.72,0.00046849,120]
[354720724,1740645037451,-1542.34,0.00046849,120]
[354720725,1740645037461,-10995.86,0.00046849,120]
[354720726,1740645037470,-500.0,0.00046849,120]
[354720727,1740645037479,-500.0,0.00046849,120]
[354720728,1740645037489,-500.0,0.00046849,120]
[354720729,1740645037498,-948.49,0.00046849,120]
[354720730,1740645037507,-500.0,0.00046849,120]
[354720731,1740645037516,-3757.81,0.00046849,120]
[354720732,1740645037526,-917.96,0.00046849,120]
[354720733,1740645037535,-500.0,0.00046849,120]
[354720734,1740645037545,-500.0,0.00046849,120]
[354720735,1740645037554,-564.18,0.00046849,120]
[354720736,1740645037563,-500.0,0.00046849,120]
[354720737,1740645037575,-500.0,0.00046849,120]
[354720738,1740645037584,-500.0,0.00046849,120]
[354720739,1740645037594,-1429.82,0.00046849,120]
[354720740,1740645037603,-501.08,0.00046849,120]
[354720741,1740645037612,-516.06021932,0.00046849,120]
[354720742,1740645037622,-251.44,0.00046849,120]
[354720743,1740645037631,-500.0,0.00046849,30]
[354720744,1740645037641,-500.0,0.00046849,120]
[354720745,1740645037650,-504.9677976,0.00046849,120]
[354720746,1740645037660,-621.86,0.00046849,120]
[354720747,1740645037671,-500.0,0.00046849,120]
[354720748,1740645037681,-227.45,0.00046849,120]
[354720749,1740645037690,-500.0,0.00046849,120]
[354720750,1740645037699,-500.0,0.00046849,120]
[354720751,1740645037709,-978.18,0.00046849,120]
[354720752,1740645037718,-500.0,0.00046849,120]
[354720753,1740645037728,-500.0,0.00046849,120]
[354720754,1740645037737,-500.0,0.00046849,120]
[354720755,1740645037747,-500.0,0.00046849,120]
[354720756,1740645037756,-500.0,0.00046849,120]
[354720757,1740645037766,-500.0,0.00046849,120]
[354720758,1740645037776,-2204.67,0.00046849,120]
[354720759,1740645037786,-500.0,0.00046849,120]
[354720760,1740645037796,-504.50096231,0.00046849,120]
[354720761,1740645037805,-1661.65,0.00046849,120]
[354720762,1740645037816,-500.0,0.00046849,120]
[354720763,1740645037829,-500.0,0.00046849,120]
[354720764,1740645037838,-1062.09,0.00046849,120]
[354720765,1740645037848,-500.0,0.00046849,120]
[354720766,1740645037858,-542.71981125,0.00046849,120]
[354720767,1740645037868,-500.0,0.00046849,120]
[354720768,1740645037877,-500.0,0.00046849,120]
[354720769,1740645037886,-500.0,0.00046849,120]
[354720770,1740645037897,-2457.94,0.00046849,120]
[354720771,1740645037907,-500.0,0.00046849,120]
[354720772,1740645037916,-668.19,0.00046849,120]
[354720773,1740645037925,-500.0,0.00046849,120]
[354720774,1740645037935,-1292.87,0.00046849,120]
[354720775,1740645037945,-1000.0,0.00046849,2]
[354720776,1740645037954,-257.02677985,0.00046849,120]
[354720777,1740645037963,-778.13,0.00046849,120]
[354720778,1740645037972,-1176.62,0.00046849,120]
[354720779,1740645037981,-965.62,0.00046849,120]
[354720780,1740645037990,-500.0,0.00046849,120]
[354720781,1740645037999,-500.0,0.00046849,120]
[354720782,1740645038008,-500.0,0.00046849,120]
[354720783,1740645038018,-500.0,0.00046849,120]
[354720784,1740645038027,-1216.86,0.00046849,120]
[354720785,1740645038037,-536.82,0.00046849,120]
[354720787,1740645038047,-500.0,0.00046849,120]
[354720788,1740645038057,-500.0,0.00046849,120]
[354720790,1740645038066,-500.0,0.00046849,120]
[354720791,1740645038077,-500.0,0.00046849,120]
[354720792,1740645038087,-504.59,0.00046849,120]
[354720793,1740645038096,-500.0,0.00046849,120]
[354720794,1740645038105,-613.31,0.00046849,120]
[354720795,1740645038115,-500.0,0.00046849,120]
[354720796,1740645038124,-1414.02,0.00046849,120]
[354720797,1740645038133,-500.0,0.00046849,120]
[354720798,1740645038142,-500.0,0.00046849,120]
[354720799,1740645038151,-500.0,0.00046849,120]
[354720801,1740645038162,-799.1,0.00046849,120]
[354720802,1740645038171,-500.0,0.00046849,120]
[354720803,1740645038179,-500.0,0.00046849,120]
[354720804,1740645038188,-500.0,0.00046849,120]
[354720805,1740645038199,-10598.07,0.00046849,6]
[354720806,1740645038209,-821.64,0.00046849,120]
[354720807,1740645038218,-500.0,0.00046849,21]
[354720808,1740645038227,-500.0,0.00046849,120]
[354720809,1740645038236,-500.0,0.00046849,120]
[354720810,1740645038245,-3104.1,0.00046849,120]
[354720811,1740645038254,-1640.98,0.00046849,120]
[354720812,1740645038263,-503.9467767,0.00046849,120]
[354720813,1740645038272,-500.0,0.00046849,120]
[354720814,1740645038282,-502.09010371,0.00046849,120]
[354720815,1740645038291,-1310.59,0.00046849,120]
[354720816,1740645038300,-500.0,0.00046849,120]
[354720817,1740645038309,-518.174401,0.00046849,120]
[354720818,1740645038319,-500.0,0.00046849,120]
[354720819,1740645038328,-641.14,0.00046849,120]
[354720820,1740645038337,-17858.17,0.00046849,120]
[354720821,1740645038347,-708.95,0.00046849,120]
[354720822,1740645038358,-823.99,0.00046849,120]
[354720823,1740645038368,-500.0,0.00046849,120]
[354720824,1740645038379,-2086.09,0.00046849,120]
[354720825,1740645038390,-500.0,0.00046849,120]
[354720826,1740645038399,-655.68,0.00046849,120]
[354720827,1740645038409,-245.4148223,0.00046849,120]
[354720828,1740645038420,-500.0,0.00046849,120]
[354720829,1740645038430,-1565.67,0.00046849,120]
[354720831,1740645038440,-500.0,0.00046849,120]
[354720832,1740645038450,-500.0,0.00046849,120]
[354720833,1740645038459,-500.0,0.00046849,120]
[354720835,1740645038468,-500.0,0.00046849,120]
[354720836,1740645038478,-500.0,0.00046849,120]
[354720838,1740645038488,-500.0,0.00046849,120]
[354720839,1740645038497,-1232.62,0.00046849,120]
[354720840,1740645038506,-500.0,0.00046849,120]
[354720841,1740645038515,-240.46764758,0.00046944,2]
[354720842,1740645038525,-240.46764758,0.000471,2]
[354720843,1740645038535,-500.0,0.00047123,120]
[354720844,1740645038544,-500.0,0.00047123,120]
[354720845,1740645038554,-500.0,0.00047123,120]
[354720846,1740645038563,-500.0,0.00047123,120]
[354720847,1740645038573,-500.0,0.00047123,3]
[354720848,1740645038583,-511.37,0.00047123,120]
[354720849,1740645038592,-500.0,0.00047123,120]
[354720850,1740645038602,-233.72,0.00047123,120]
[354720851,1740645038611,-500.0,0.00047123,120]
[354720852,1740645038620,-500.0,0.00047123,120]
[354720853,1740645038630,-554.52828611,0.00047123,120]
[354720854,1740645038639,-500.0,0.00047123,120]
[354720855,1740645038648,-750.83,0.00047123,120]
[354720856,1740645038657,-500.0,0.00047123,120]
[354720857,1740645038666,-537.68,0.00047123,120]
[354720858,1740645038676,-592.19,0.00047123,120]
[354720859,1740645038685,-500.0,0.00047123,120]